bitfinex/quotes_ETHUSD_20250223
["timestamp","ask_amount","ask_price","bid_price","bid_amount"]
[1740325491364,3.4163,2791.1,2790.5,2.86681]
[1740325491547,3.4163,2791.1,2790.6,2.86675]
[1740325492384,3.41626,2791.1,2790.6,2.86675]
[1740325492596,3.41626,2791.1,2790.5,2.86681]
[1740325492771,3.41626,2791.1,2790.6,2.86673]
[1740325493266,2.86656,2790.8,2789.9,0.7918]
[1740325493468,1.3408,2790.9,2790.4,2.86695]
[1740325493469,5.79,2790.7,2790.4,2.86695]
[1740325493835,5.24,2790.7,2790.4,2.86695]
[1740325494042,8.10674,2790.7,2790.2,2.86712]
[1740325494239,8.10674,2790.7,2790.2,2.86711]
[1740325494440,5.24,2790.7,2790.3,2.86701]
[1740325495445,5.24,2790.7,2789.8,2.86756]
[1740325495446,0.55,2790.4,2789.4,3.65977]
[1740325495668,0.7908,2790.3,2789.3,5.51537343]
[1740325495843,0.55,2790.2,2789.7,2.86762]
[1740325496046,0.55,2790.2,2789.7,2.86761]
[1740325496657,0.55,2790.2,2789.8,0.0425552]
[1740325496836,0.55,2790.2,2789.9,2.86743]
[1740325497171,5.79,2790.2,2790.0,0.0425552]
[1740325498432,5.79,2790.2,2790.0,2.9099352]
[1740325499538,5.79,2790.2,2790.0,5.7772452]
[1740325499735,5.24,2790.2,2790.1,2.86728]
[1740325500230,5.24,2790.2,2790.1,2.9098352]
[1740325500636,5.24,2790.2,2790.1,0.0425552]
[1740325501060,5.24,2790.2,2790.1,2.86728]
[1740325501271,5.24,2790.2,2790.1,2.91096975]
[1740325502270,8.24,2790.6,2790.1,2.91096975]
[1740325502771,8.24,2790.6,2790.2,2.86711]
[1740325502968,8.24,2790.6,2790.1,2.86728]
[1740325503198,8.24,2790.6,2790.2,2.91085975]
[1740325503469,8.24,2790.6,2790.2,0.04368975]
[1740325503671,8.24,2790.6,2790.4,2.86692]
[1740325503842,8.24,2790.6,2790.2,2.86712]
[1740325504038,8.24,2790.6,2790.5,0.04368975]
[1740325504243,8.24,2790.6,2790.2,2.86712]
[1740325504500,8.24,2790.6,2790.5,0.04368975]
[1740325504639,8.24,2790.6,2790.2,2.8671]
[1740325504841,8.24,2790.6,2790.5,0.04368975]
[1740325505041,8.24,2790.6,2790.2,5.73421]
[1740325505251,8.24,2790.6,2790.5,0.04368975]
[1740325505437,9.429747,2790.6,2790.2,2.8671]
[1740325505638,9.429747,2790.6,2790.5,0.04368975]
[1740325505861,9.429747,2790.6,2790.3,2.86701]
[1740325506174,8.24,2790.6,2790.4,2.86696]
[1740325506344,8.24,2790.6,2790.5,0.04368975]
[1740325507241,8.24,2790.6,2790.3,2.86705]
[1740325507437,8.24,2790.6,2790.5,0.04368975]
[1740325508346,5.24,2790.6,2790.5,2.91054975]
[1740325508967,5.24,2790.6,2790.5,0.04368975]
[1740325509645,15.56946,2790.6,2790.5,0.04368975]
[1740325509944,18.042142,2790.6,2790.5,0.04368975]
[1740325510255,18.042142,2790.6,2790.0,2.86731]
[1740325510443,0.55,2790.3,2789.8,2.86751]
[1740325510646,8.65714,2790.3,2790.1,0.04368975]
[1740325510857,9.890316,2790.3,2789.8,2.86751]
[1740325511178,9.890316,2790.3,2789.9,0.04346857]
[1740325511575,7.023176,2790.3,2789.9,0.04346857]
[1740325511875,3.41738,2790.0,2789.4,2.8679]
[1740325512082,3.41754,2789.9,2789.4,2.8679]
[1740325512280,3.41754,2789.9,2789.5,0.04194874]
[1740325512650,0.8171,2789.7,2789.5,0.04194874]
[1740325512851,6.0571,2789.7,2789.5,0.04194874]
[1740325513157,6.0571,2789.7,2789.6,0.04194874]
[1740325513354,6.0571,2789.7,2789.3,2.86809]
[1740325513560,6.0571,2789.7,2789.4,0.04194874]
[1740325514358,6.0571,2789.7,2789.3,2.86802]
[1740325514562,6.0571,2789.7,2789.4,0.04194874]
[1740325515281,6.0571,2789.7,2789.4,2.90992874]
[1740325515581,3.0,2790.2,2789.4,2.90992874]
[1740325515582,4.4627,2790.6,2789.7,2.86769]
[1740325515755,4.4627,2790.6,2790.4,2.86693]
[1740325515963,4.4627,2790.6,2790.2,2.86711]
[1740325516155,4.4627,2790.6,2790.3,2.90924917]
[1740325516556,4.4627,2790.6,2790.5,2.86686]
[1740325516767,4.4627,2790.6,2790.5,3.70983955]
[1740325517979,4.4627,2790.6,2790.5,0.04217955]
[1740325518185,4.4627,2790.6,2790.4,2.86693]
[1740325518397,4.4627,2790.6,2790.5,0.04217955]
[1740325518978,8.32573,2790.6,2790.5,0.04217955]
[1740325519147,8.32573,2790.6,2789.3,2.91885303]
[1740325519148,0.55,2790.5,2789.7,3.66846]
[1740325519353,2.86711,2790.3,2789.8,0.04024041]
[1740325519557,0.8171,2790.2,2789.7,0.8008]
[1740325519760,2.86748,2789.9,2789.8,0.04024041]
[1740325519964,5.24,2789.9,2789.8,0.04024041]
[1740325520246,5.24,2789.9,2789.7,2.86761]
[1740325520677,5.24,2789.9,2789.8,0.04024041]
[1740325520879,5.24,2789.9,2789.8,2.90782041]
[1740325521079,5.24,2789.9,2789.8,2.86758]
[1740325521385,3.55,2790.2,2789.8,2.86758]
[1740325521386,7.77579,2790.6,2790.0,2.8673]
[1740325521558,3.55,2790.5,2790.0,2.8673]
[1740325521749,3.55,2790.5,2790.1,0.04089431]
[1740325521956,7.90897,2790.6,2790.1,2.90816431]
[1740325522150,7.90897,2790.6,2790.2,2.86711]
[1740325522359,1.396607,2790.5,2790.3,0.04087508]
[1740325522565,1.396607,2790.5,2790.0,2.86736]
[1740325522853,1.396607,2790.5,2789.9,2.86743]
[1740325522854,7.90897,2790.6,2790.1,2.86727]
[1740325523074,0.55,2790.5,2790.1,0.04086546]
[1740325523258,0.55,2790.5,2790.1,2.90811546]
[1740325523465,0.55,2790.5,2790.1,0.04086546]
[1740325523666,2.288292,2790.5,2790.1,0.04086546]
[1740325523979,10.77582,2790.6,2790.2,0.04081737]
[1740325523980,7.90897,2790.6,2790.2,0.04081737]
[1740325524172,0.55,2790.5,2790.2,0.04081737]
[1740325524358,3.55,2790.5,2790.0,2.86735]
[1740325524572,3.55,2790.5,2790.2,2.86711]
[1740325524983,3.55,2790.5,2790.3,0.04082699]
[1740325525187,3.55,2790.5,2790.2,2.86711]
[1740325525346,3.55,2790.5,2790.3,2.90788699]
[1740325525554,3.55,2790.5,2790.3,0.04082699]
[1740325525774,3.0,2790.5,2790.2,2.86709]
[1740325526189,3.0,2790.5,2790.3,0.04082699]
[1740325526366,3.0,2790.5,2790.1,2.86726]
[1740325526566,3.0,2790.5,2790.2,0.04082699]
[1740325526766,3.0,2790.5,2790.2,5.73426]
[1740325526986,3.0,2790.5,2790.2,2.8671]
[1740325527388,3.0,2790.5,2790.3,0.04082699]
[1740325527594,3.0,2790.5,2790.3,2.867]
[1740325527891,3.0,2790.5,2790.4,0.04082699]
[1740325528270,3.0,2790.5,2790.2,2.8671]
[1740325528692,3.0,2790.5,2790.3,0.04078852]
[1740325528879,0.55,2790.4,2790.3,0.04078852]
[1740325529079,6.28402,2790.4,2789.8,2.86751]
[1740325529379,3.41697,2790.4,2789.9,2.90824891]
[1740325529584,0.55,2790.4,2790.0,2.86731]
[1740325529999,0.55,2790.4,2790.1,0.04077891]
[1740325530293,3.41705,2790.4,2790.1,0.04077891]
[1740325530497,0.776903,2790.3,2790.1,0.04077891]
[1740325530699,0.776903,2790.3,2789.9,2.86747]
[1740325530867,6.41705,2790.4,2790.2,0.04079814]
[1740325531062,6.41705,2790.4,2789.9,2.86747]
[1740325531709,6.41705,2790.4,2790.0,0.04079814]
[1740325531993,11.65705,2790.4,2790.0,0.04079814]
[1740325532291,0.55,2790.2,2790.0,0.04079814]
[1740325532697,0.55,2790.2,2789.8,2.86758]
[1740325533016,0.55,2789.8,2789.2,0.8146]
[1740325533168,4.3741,2789.8,2789.3,2.90880775]
[1740325533364,4.3741,2789.8,2789.4,2.86798]
[1740325533768,4.3741,2789.8,2789.5,0.04080775]
[1740325534002,2.86779,2789.6,2789.5,0.04080775]
[1740325534176,2.86779,2789.6,2789.1,0.005]
[1740325534177,0.55,2789.5,2789.2,2.86813]
[1740325534368,0.55,2789.5,2789.3,0.03935033]
[1740325534699,0.55,2789.2,2789.1,0.005]
[1740325534893,3.55,2789.2,2789.1,0.005]
[1740325535088,3.6921,2789.4,2789.1,0.005]
[1740325535089,3.0,2789.4,2789.1,0.005]
[1740325535290,3.0,2789.4,2789.3,2.8681]
[1740325535604,5.24,2789.5,2789.4,2.868]
[1740325536376,8.24,2789.5,2789.4,2.868]
[1740325536571,5.24,2790.0,2789.7,2.8676]
[1740325536799,5.24,2790.0,2789.5,2.86786]
[1740325537107,3.0,2789.9,2789.6,2.86772]
[1740325537410,3.0,2789.9,2789.6,5.73544]
[1740325537593,3.0,2789.9,2789.7,2.86766]
[1740325537798,5.24,2790.0,2789.4,2.86794]
[1740325538105,5.24,2790.0,2789.6,5.73558]
[1740325538309,5.24,2790.0,2789.7,2.86768]
[1740325538610,8.79,2790.0,2789.9,2.86748]
[1740325539807,8.79,2790.0,2789.7,5.73528]
[1740325540007,8.24,2790.0,2789.2,3.46191343]
[1740325540313,8.24,2790.0,2789.1,2.87328]
[1740325540314,3.41777,2789.7,2789.1,2.87328]
[1740325540606,3.0,2789.6,2789.1,2.87328]
[1740325540796,3.55,2789.7,2789.3,2.86803]
[1740325541001,8.79,2789.7,2789.1,2.87324]
[1740325541207,8.79,2789.7,2789.2,2.86814]
[1740325541592,8.79,2789.7,2789.3,0.03983127]
[1740325541791,10.038234,2789.7,2789.2,2.86814]
[1740325541978,8.24,2789.7,2789.3,0.03983127]
[1740325542186,8.24,2789.7,2789.3,2.8681]
[1740325542506,8.24,2789.7,2789.4,0.03983127]
[1740325542711,2.86789,2789.5,2789.4,0.03983127]
[1740325542909,4.24259,2789.5,2789.4,0.03983127]
[1740325543212,0.55,2789.3,2789.1,0.005]
[1740325543518,0.55,2789.3,2789.2,0.04011991]
[1740325544020,0.8247,2789.5,2789.2,0.04011991]
[1740325544181,3.0,2789.6,2789.2,0.04011991]
[1740325544374,0.55,2789.5,2789.2,0.04011991]
[1740325544579,0.55,2789.3,2789.2,0.04011991]
[1740325544776,0.55,2789.3,2789.1,0.005]
[1740325544980,0.55,2789.3,2789.2,0.04011991]
[1740325545202,1.25106793,2789.3,2789.2,0.04011991]
[1740325545519,1.25106793,2789.3,2789.1,0.005]
[1740325546010,10.72005392,2789.3,2789.2,0.04011991]
[1740325546211,2.8682,2789.2,2789.1,0.005]
[1740325546418,3.4182,2789.2,2789.1,0.005]
[1740325546620,3.4182,2789.2,2789.1,0.04630338]
[1740325547184,0.55,2789.2,2789.1,0.04630338]
[1740325547632,3.4182,2789.2,2789.1,0.04630338]
[1740325547928,5.12801559,2789.2,2789.1,0.04630338]
[1740325548286,14.12091559,2789.2,2789.1,0.04630338]
[1740325548491,14.12091559,2789.2,2789.1,0.005]
[1740325553231,0.70106793,2789.3,2789.2,2.8682]
[1740325553536,0.70106793,2789.3,2789.2,2.90994617]
[1740325553891,0.70106793,2789.3,2789.2,3.68324617]
[1740325554092,5.24,2789.9,2789.6,2.86773]
[1740325554309,5.24,2789.9,2789.3,2.8681]
[1740325554310,3.0,2789.8,2789.3,2.8681]
[1740325554491,3.0,2789.8,2789.7,0.04173654]
[1740325554715,3.0,2789.8,2789.3,2.8681]
[1740325554914,2.86758,2789.8,2789.7,0.04173654]
[1740325555094,2.86758,2789.8,2789.2,3.64144]
[1740325555295,6.41758,2789.8,2789.7,0.04173654]
[1740325555493,5.9931,2790.2,2789.2,0.7733]
[1740325555698,3.0,2790.1,2789.8,2.86751]
[1740325555916,5.24,2790.2,2789.8,0.36819209]
[1740325556125,5.24,2790.2,2789.9,2.90848128]
[1740325556426,3.0,2790.1,2789.9,0.04110128]
[1740325556595,3.0,2790.1,2789.7,3.64093]
[1740325556796,3.0,2790.1,2789.8,0.0404662]
[1740325556996,3.0,2790.1,2789.7,3.64091]
[1740325557197,0.71135685,2790.0,2789.8,0.0404662]
[1740325557599,0.71135685,2790.0,2789.7,0.7733]
[1740325557817,4.12873685,2790.0,2789.3,5.73607]
[1740325558053,3.41752,2789.9,2789.4,3.64126]
[1740325558199,3.41752,2789.9,2789.4,3.6817262]
[1740325558402,0.55,2789.9,2789.4,3.6817262]
[1740325558717,3.0,2789.8,2789.4,0.8137662]
[1740325558937,3.0,2789.8,2789.4,3.6817562]
[1740325559352,3.55,2789.9,2789.4,0.8137662]
[1740325559519,2.86771,2789.7,2789.4,0.8137662]
[1740325560131,0.55,2789.7,2789.4,0.8137662]
[1740325560331,5.9931,2790.2,2789.4,0.8137662]
[1740325560537,3.0,2790.1,2789.6,2.86775]
[1740325560831,2.86766,2789.8,2789.7,0.0402834]
[1740325561031,0.730916,2789.8,2789.1,0.7783]
[1740325561233,0.730916,2789.8,2789.3,2.86801]
[1740325561234,3.0,2789.7,2789.3,2.86801]
[1740325561434,3.0,2789.7,2789.1,0.7783]
[1740325561435,3.0,2789.7,2789.6,2.86779]
[1740325561632,5.24,2789.8,2789.7,2.86769]
[1740325561803,2.86704,2790.4,2789.8,2.8675]
[1740325562005,3.0,2790.3,2789.8,2.8675]
[1740325562200,3.0,2790.4,2789.9,2.90800355]
[1740325562405,5.86697,2790.4,2789.9,0.04053355]
[1740325562738,0.55,2790.3,2789.8,2.86753]
[1740325562939,5.86697,2790.4,2790.0,0.04053355]
[1740325562940,2.86719,2790.2,2790.0,0.04053355]
[1740325563144,2.86719,2790.2,2789.6,0.7733]
[1740325563145,2.86716,2790.3,2789.6,3.64107]
[1740325563328,0.55,2789.6,2789.3,0.7733]
[1740325563528,3.55,2789.7,2789.1,0.005]
[1740325563727,0.55,2789.5,2789.1,0.005]
[1740325563937,0.55,2789.5,2789.1,2.8732]
[1740325564139,0.55,2789.6,2789.1,3.23785]
[1740325564346,0.55,2789.6,2789.1,2.8732]
[1740325564554,3.41782,2789.6,2789.1,2.8732]
[1740325564862,3.4182,2789.2,2789.1,0.005]
[1740325565068,0.55,2789.2,2789.1,0.005]
[1740325565816,5.24,2789.3,2789.2,3.6435]
[1740325566213,5.24,2789.3,2789.2,0.7753]
[1740325567145,5.24,2789.3,2789.2,3.6435]
[1740325567347,5.24,2789.3,2789.2,0.7753]
[1740325568253,5.24,2789.3,2789.1,0.005]
[1740325568452,8.10816,2789.3,2789.1,0.005]
[1740325568839,2.8682,2789.2,2789.1,0.005]
[1740325569341,3.4182,2789.2,2789.1,0.005]
[1740325569517,7.28402,2789.2,2789.1,0.005]
[1740325569713,13.29882,2789.2,2789.1,0.005]
[1740325572847,13.56887482,2789.2,2789.1,0.005]
[1740325574049,13.01887482,2789.2,2789.1,0.005]
[1740325574348,13.7367948,2789.2,2789.1,0.73326113]
[1740325574646,14.2867948,2789.2,2789.1,0.73326113]
[1740325577452,2.86953,2788.0,2786.8,0.8016]
[1740325577655,2.86985,2787.6,2787.3,0.8016]
[1740325577956,2.86999,2787.5,2787.3,0.8016]
[1740325578133,2.86999,2787.5,2787.4,0.04169813]
[1740325578333,6.41999,2787.5,2787.4,0.04169813]
[1740325578532,3.0,2787.5,2787.4,0.04169813]
[1740325578730,5.24,2787.9,2787.3,0.8016]
[1740325578936,5.24,2787.9,2786.3,14.68946343]
[1740325578937,5.24,2787.9,2787.8,2.86964]
[1740325579131,5.24,2787.9,2787.6,0.8016]
[1740325579333,8.10961,2787.9,2787.6,0.7516]
[1740325579538,5.24,2787.9,2787.7,0.04408628]
[1740325579938,2.86914,2788.3,2787.8,5.51689343]
[1740325580345,5.24,2788.6,2788.2,2.86919]
[1740325580641,3.0,2788.5,2788.3,2.9132419]
[1740325580865,3.0,2788.5,2788.3,0.0442019]
[1740325581161,3.0,2788.5,2788.2,2.86919]
[1740325581329,3.0,2788.5,2788.4,0.0442019]
[1740325581642,3.0,2788.6,2788.4,2.91284581]
[1740325581844,5.24,2789.0,2788.4,0.04383581]
[1740325582045,2.64731343,2789.8,2787.1,0.1]
[1740325582046,5.24,2789.7,2788.7,2.64731343]
[1740325582246,5.24,2789.7,2789.1,2.86822]
[1740325582247,8.10769,2789.7,2789.1,2.86822]
[1740325582462,0.55,2789.6,2789.2,0.8016]
[1740325582649,5.24,2789.7,2789.3,0.04383581]
[1740325582847,3.0,2789.7,2789.3,0.04383581]
[1740325583157,2.86799,2789.5,2789.4,0.04338315]
[1740325583363,3.0,2788.9,2788.7,0.8016]
[1740325583873,3.0,2788.9,2788.8,0.04117184]
[1740325584029,2.86881,2788.7,2788.4,0.8016]
[1740325584229,5.86892,2788.5,2788.4,0.8016]
[1740325584431,5.86892,2788.5,2787.9,3.67114]
[1740325584736,2.86912,2788.4,2787.9,0.8016]
[1740325584938,2.86872,2788.7,2788.1,2.86927]
[1740325585137,2.86892,2788.6,2788.0,2.86942]
[1740325585395,5.86845,2789.0,2788.2,0.7995]
[1740325585612,3.0,2789.0,2788.5,2.86886]
[1740325585768,4.00600424,2789.7,2788.5,2.86886]
[1740325585769,5.24,2789.4,2788.8,2.86859]
[1740325586065,3.0,2789.1,2788.6,3.66822]
[1740325586262,11.65824,2789.2,2788.6,3.66822]
[1740325586465,5.79,2789.2,2788.7,0.04117184]
[1740325586772,3.0,2789.1,2788.6,3.66826]
[1740325586963,5.86831,2789.1,2788.6,3.66826]
[1740325587168,3.0,2788.9,2788.7,0.04117184]
[1740325587375,0.55,2789.0,2788.7,0.04117184]
[1740325587555,2.86866,2788.8,2788.3,0.7995]
[1740325587773,2.86886,2788.6,2788.3,0.7995]
[1740325587934,2.86886,2788.6,2788.4,0.04117184]
[1740325588448,2.86892,2788.5,2788.4,0.04117184]
[1740325588635,3.992698,2788.5,2788.4,0.04117184]
[1740325588966,2.86909,2788.4,2788.0,0.7995]
[1740325589334,2.86909,2788.4,2788.1,0.03970142]
[1740325589536,2.86918,2788.3,2788.1,0.03970142]
[1740325589843,6.41923,2788.2,2788.1,0.03970142]
[1740325590059,7.872071,2788.2,2787.7,0.7898]
[1740325590270,2.86951,2788.0,2787.7,0.7898]
[1740325590563,2.86954,2787.9,2787.8,0.03676057]
[1740325590739,2.86954,2787.9,2787.7,0.7898]
[1740325590740,2.86951,2788.0,2787.7,0.7898]
[1740325590934,2.86951,2788.0,2787.4,2.87004]
[1740325591471,3.60038643,2788.0,2787.5,0.03676057]
[1740325591954,0.55,2787.9,2787.5,0.03676057]
[1740325592129,2.86969,2787.8,2787.5,0.03676057]
[1740325592330,2.86991,2787.6,2787.2,0.7898]
[1740325592548,2.86985,2787.6,2787.2,0.7898]
[1740325592958,0.55,2787.7,2787.2,3.66004]
[1740325593170,4.702944,2787.7,2787.2,0.7898]
[1740325593520,2.87074,2786.8,2786.3,0.7898]
[1740325593793,3.0,2787.2,2786.3,0.7898]
[1740325593794,2.87064,2786.9,2786.3,3.56093]
[1740325593954,5.87047,2787.0,2786.3,3.56093]
[1740325594155,3.0,2786.9,2786.3,0.6898]
[1740325594355,3.0,2786.9,2785.9,2.87155]
[1740325594562,0.824,2786.8,2785.9,2.87159]
[1740325594750,0.824,2786.8,2785.8,2.87168]
[1740325595288,2.87114,2786.4,2785.6,2.87184]
[1740325595459,2.87181,2785.7,2785.5,0.1502965]
[1740325595670,2.87191,2785.6,2785.5,0.1502965]
[1740325595984,6.446282,2785.6,2785.5,0.1502965]
[1740325596351,12.471882,2785.6,2785.5,6.5e-06]
[1740325596590,9.599972,2785.6,2785.5,6.5e-06]
[1740325596886,9.599972,2785.6,2784.1,0.005]
[1740325596887,5.24,2785.9,2785.1,2.87235]
[1740325597087,0.7856,2786.2,2785.0,0.7898]
[1740325597290,3.0,2786.1,2785.0,0.7898]
[1740325597493,2.87191,2785.6,2785.0,0.7898]
[1740325597665,2.87252,2785.1,2784.3,2.87316]
[1740325597871,3.0,2785.5,2784.6,2.87289]
[1740325598050,0.7856,2786.1,2785.3,0.7898]
[1740325598395,3.7856,2786.1,2785.4,0.55]
[1740325598561,3.0,2786.1,2785.4,0.55]
[1740325598762,6.52787,2786.4,2785.4,0.55]
[1740325598956,0.7856,2786.4,2785.4,0.55]
[1740325599156,2.87093,2786.6,2785.5,1.3398]
[1740325599395,0.824,2786.8,2785.9,0.55]
[1740325599566,0.7856,2787.2,2785.9,3.42153]
[1740325599891,2.87007,2787.4,2786.3,0.55]
[1740325600074,2.87041,2787.1,2786.5,0.55]
[1740325600264,0.7856,2787.5,2786.5,0.55]
[1740325600265,2.87068,2786.8,2786.5,0.55]
[1740325600478,2.87032,2787.2,2786.5,0.55]
[1740325600702,2.86962,2787.9,2787.2,2.87026]
[1740325600906,2.86962,2787.9,2787.1,3.4203]
[1740325601105,2.86936,2788.1,2787.3,0.55]
[1740325601412,2.87012,2787.4,2787.2,0.7898]
[1740325601632,2.87016,2787.3,2787.2,0.7898]
[1740325601909,2.87055,2787.0,2786.6,0.7898]
[1740325602077,3.0,2787.3,2786.6,0.7898]
[1740325602277,2.8706,2786.9,2786.6,0.7898]
[1740325602504,2.87077,2786.7,2786.6,0.7898]
[1740325602708,7.40807591,2787.3,2786.3,0.7898]
[1740325602883,2.8708,2786.7,2786.3,0.7898]
[1740325603304,2.87058,2786.9,2786.3,0.7898]
[1740325603305,5.87048,2787.0,2786.4,2.87105]
[1740325603493,2.87057,2786.9,2786.4,3.42101]
[1740325603713,2.8696,2787.9,2786.7,0.7898]
[1740325603714,2.86998,2787.5,2786.7,0.7898]
[1740325603916,3.0,2787.4,2786.8,0.55]
[1740325604107,3.32247591,2787.6,2786.7,0.7898]
[1740325604425,2.87067,2786.8,2786.7,0.7898]
[1740325604588,2.87067,2786.8,2786.1,0.7898]
[1740325604589,2.87089,2786.6,2786.1,0.7898]
[1740325604780,2.87089,2786.6,2786.1,1.155925]
[1740325604994,2.87129,2786.2,2785.7,0.7922]
[1740325605192,2.8716,2785.9,2785.7,0.7922]
[1740325605417,2.87141,2786.1,2785.7,0.7922]
[1740325605922,2.87123,2786.3,2785.7,0.7922]
[1740325606122,3.0,2786.4,2785.7,0.7922]
[1740325606304,2.87133,2786.2,2785.7,0.7922]
[1740325606503,2.87111,2786.4,2785.7,0.7922]
[1740325606709,2.87129,2786.2,2785.7,0.7922]
[1740325606918,3.0,2786.1,2785.4,0.7922]
[1740325607092,2.87139,2786.1,2785.4,0.7922]
[1740325607291,3.0,2786.2,2785.7,2.87173]
[1740325607492,0.33017911,2786.3,2785.9,0.7922]
[1740325607691,0.33017911,2786.3,2786.1,2.87135]
[1740325607887,2.87145,2786.1,2785.9,0.7922]
[1740325608123,0.33017911,2786.3,2785.9,0.7922]
[1740325608297,3.42103852,2786.8,2786.1,2.87131]
[1740325608497,2.87105,2786.5,2785.9,3.66377]
[1740325608708,5.87089,2786.6,2785.9,3.66372]
[1740325608894,2.87107,2786.5,2785.9,3.66374]
[1740325609089,0.34210385,2786.7,2785.9,0.7922]
[1740325609298,0.34210385,2786.7,2785.4,2.87208]
[1740325609299,0.34210385,2786.7,2786.3,2.87109]
[1740325609524,2.8709,2786.6,2786.4,0.7922]
[1740325609728,0.32130038,2786.5,2786.1,0.7798]
[1740325609921,3.20064595,2786.6,2786.1,0.7798]
[1740325610144,2.87109,2786.4,2786.1,0.7798]
[1740325610444,2.87109,2786.4,2785.8,0.7798]
[1740325610653,2.8713,2786.2,2785.8,0.7798]
[1740325610807,2.8713,2786.2,2785.5,8.26199]
[1740325610808,2.87153,2786.0,2785.5,6.1698]
[1740325611008,2.87153,2786.0,2785.5,0.7798]
[1740325612043,0.287153,2786.0,2785.5,3.65178]
[1740325612244,3.0,2786.2,2785.7,2.87171]
[1740325612406,3.0,2786.2,2785.5,3.65173]
[1740325612608,2.87142,2786.1,2785.5,3.65173]
[1740325612845,3.0,2786.2,2785.7,2.87172]
[1740325613138,3.0,2786.2,2785.7,2.87174]
[1740325613842,3.0,2786.2,2785.7,2.87179]
[1740325613843,6.458469,2786.2,2785.7,2.87179]
[1740325613997,2.87151,2786.0,2785.5,0.7798]
[1740325614199,6.458469,2786.2,2785.5,3.65172]
[1740325614393,0.7696,2786.1,2785.5,0.7798]
[1740325614599,2.872,2785.6,2785.0,0.773]
[1740325615213,3.20170707,2786.1,2785.5,2.87191]
[1740325615630,3.0,2786.0,2785.5,3.64491]
[1740325615932,3.0,2786.0,2785.5,6.51686]
[1740325616089,3.85865813,2786.0,2785.5,3.64491]
[1740325616293,0.85865813,2786.0,2785.5,0.773]
[1740325616490,0.85865813,2786.0,2785.9,2.8716]
[1740325617127,0.85865813,2786.0,2785.5,3.64493]
[1740325617329,4.10324094,2786.0,2785.5,0.773]
[1740325617521,1.23167094,2786.0,2785.6,2.87191]
[1740325617829,0.33023707,2785.9,2785.2,9.03526]
[1740325618031,3.7696,2785.8,2785.2,0.773]
[1740325618328,2.87198,2785.6,2785.2,0.773]
[1740325618532,2.87223,2785.3,2784.9,0.773]
[1740325618706,1.14585613,2785.5,2784.6,0.773]
[1740325618907,2.8725,2785.1,2784.6,0.773]
[1740325619522,2.87264,2784.9,2784.6,0.773]
[1740325619721,2.8725,2785.1,2784.6,3.64586]
[1740325620231,2.87282,2784.8,2784.5,5.39]
[1740325620445,0.7696,2784.5,2784.2,8.85]
[1740325620653,3.64367,2783.5,2783.0,0.73469768]
[1740325620953,3.64367,2783.5,2782.7,0.1502965]
[1740325620954,3.0,2782.8,2782.7,0.1502965]
[1740325621255,5.24,2783.4,2782.7,3.0251865]
[1740325621437,2.87459,2783.1,2782.7,0.1502965]
[1740325621750,2.87452,2783.1,2782.7,0.1502965]
[1740325621955,5.8748,2782.8,2782.7,0.1502965]
[1740325622156,11.1148,2782.8,2782.7,0.1502965]
[1740325622357,11.1148,2782.8,2782.7,3.0251965]
[1740325622358,5.24,2782.8,2782.7,3.0251965]
[1740325622962,11.8844,2782.8,2782.7,0.1502965]
[1740325623483,15.523932,2782.8,2782.7,6.5e-06]
[1740325623780,9.86825813,2782.8,2782.7,6.5e-06]
[1740325623926,9.09865813,2782.8,2782.7,6.5e-06]
[1740325624252,6.09865813,2782.8,2782.7,6.5e-06]
[1740325624454,12.65661394,2782.8,2782.7,6.5e-06]
[1740325624663,9.78181394,2782.8,2782.7,6.5e-06]
[1740325625362,9.25339288,2782.8,2782.7,6.5e-06]
[1740325626275,8.57023707,2782.8,2782.7,2.8749065]
[1740325626561,7.07e-06,2782.8,2782.7,2.8749065]
[1740325626861,5.24,2783.6,2782.9,2.87462]
[1740325627034,5.24,2783.8,2782.7,6.5e-06]
[1740325627235,5.24,2783.9,2783.5,2.87401]
[1740325627434,0.524,2783.8,2783.2,0.8137]
[1740325627660,0.72585283,2783.6,2783.3,2.87419]
[1740325627859,0.72585283,2783.6,2783.2,0.8137]
[1740325628061,0.72585283,2783.6,2783.1,2.87448]
[1740325628444,3.59989283,2783.6,2782.9,2.87465]
[1740325628640,2.87426,2783.4,2782.8,2.87477]
[1740325628854,0.806,2783.5,2782.7,6.5e-06]
[1740325629038,6.61322211,2783.6,2782.7,6.5e-06]
[1740325629239,5.96585283,2783.6,2782.7,6.5e-06]
[1740325629446,2.87442,2783.2,2782.7,6.5e-06]
[1740325629641,3.0,2783.5,2782.7,6.5e-06]
[1740325629642,2.87458,2783.1,2782.7,6.5e-06]
[1740325629961,5.24,2783.4,2782.7,6.5e-06]
[1740325630166,2.8746,2783.0,2782.7,6.5e-06]
[1740325630364,5.24,2783.2,2782.7,6.5e-06]
[1740325630766,5.24,2783.2,2783.0,2.87458]
[1740325631084,0.72585283,2783.6,2783.1,2.87442]
[1740325631390,0.72585283,2783.6,2782.7,6.5e-06]
[1740325631591,0.72585283,2783.6,2783.2,2.87435]
[1740325631884,2.87421,2783.4,2782.7,6.5e-06]
[1740325632028,0.287421,2783.3,2782.7,6.5e-06]
[1740325632230,0.8254,2783.2,2782.7,6.5e-06]
[1740325632474,0.8254,2783.2,2782.8,2.87477]